Cogmind - Beta 17.1 *** ADVENTURER MODE // 2026.09.08 @ 12:00:50 Player: GARGE Result: Destroyed by D-53 Grenadier with Mini Grenade Launcher Performance ------------- Evolutions (1) 500 Regions Visited (3) 600 Robots Destroyed (36) 180 Value Destroyed (836) 836 Prototype IDs (1) 20 Alien Tech Used (0) 0 Bonus (0) 0 TOTAL SCORE: 2136 Bonus ------- None Cogmind --------- Core Integrity 0/400 Matter 81/300 Energy 100/100 System Corruption 0% Temperature Cool (0) Movement Flying (40) Location -9/Mines Parts ------- > --- POWER (1) -------- (None) > --- PROPULSION (3) --- Improved Flight Unit > --- UTILITY (3) ------ (None) > --- WEAPON (2) ------- Improved Light Cannon > --- INVENTORY (5) ---- Medium Matter Pod (0) Light Cannon Improved Light Cannon Peak State ------------ > --- POWER ------------ Improved Ion Engine > --- PROPULSION ------- Improved Flight Unit Improved Flight Unit Improved Flight Unit > --- UTILITY ---------- System Restoration Module > --- WEAPON ----------- Gauss Cannon Grenade Launcher > --- INVENTORY -------- Compact Wheel Medium Matter Pod Light Cannon Improved Light Cannon Improved Light Cannon [Rating: 20] Favorites ----------- Power Ion Engine Engine Ion Engine Propulsion Light Treads Treads Light Treads Wheel Wheel Flight Unit Improved Flight Unit Utility Heat Sink Device Heat Sink Storage Small Storage Unit Weapon Grenade Launcher Energy Gun EM Pulse Gun Ballistic Gun Assault Rifle Ballistic Cannon Improved Light Cannon Launcher Grenade Launcher Build | -11 -10 -9 -9 ------- Run | Yrd Mat Mat Min Slots Evolved 2 | . . 2 . Power . | . . . . Propulsion 1 | . . 1 . Utility 1 | . . 1 . Weapon . | . . . . Parts Attached 22 | 6 4 10 2 Power 3 | 1 1 1 . Engine 3 | 1 1 1 . Core . | . . . . Reactor . | . . . . Propulsion 7 | 2 . 5 . Treads 2 | 2 . . . Leg . | . . . . Wheel 2 | . . 2 . Hover . | . . . . Flight 3 | . . 3 . Utility 5 | 1 1 2 1 Device 2 | . 1 . 1 Storage 3 | 1 . 2 . Processor . | . . . . Hackware . | . . . . Protection . | . . . . Artifact . | . . . . Weapon 7 | 2 2 2 1 Energy Gun 1 | 1 . . . Energy Cannon . | . . . . Ballistic Gun 1 | 1 . . . Ballistic Cannon 4 | . 1 2 1 Launcher 1 | . 1 . . Special Weapon . | . . . . Impact Weapon . | . . . . Slashing Weapon . | . . . . Piercing Weapon . | . . . . Special Melee Weapon . | . . . . Unidentified Prototypes . | . . . . Parts Lost 7 | . . 1 6 Power 1 | . . . 1 Propulsion 3 | . . 1 2 Utility 1 | . . . 1 Weapon 2 | . . . 2 Highest Loss Streak 6 | . . 1 6 To Critical Strikes . | . . . . Average Backups 2 | . . 3 4 Power . | . . . . Propulsion . | . . . . Utility . | . . . 1 Weapon 1 | . . 2 3 Tool/Special . | . . . . Unused Backups 1 | . 1 . . Power . | . . . . Propulsion . | . . . . Utility 1 | . 1 . . Weapon . | . . . . Tool/Special . | . . . . Average Slot Usage (%) 77 | . 89 72 58 Engine 11 | . 14 11 8 Treads 15 | . 28 9 . Wheel 3 | . . 6 . Flight 4 | . . 3 31 Device 7 | . 5 9 4 Storage 11 | . 14 11 . Energy Gun 1 | . 3 . . Ballistic Gun 3 | . 9 . . Ballistic Cannon 10 | . 8 12 9 Launcher 6 | . 4 8 3 Peak Build Rating 20 | 6 7 15 20 Average Rating 8 | 4 6 8 15 On Entrance 6 | . 6 7 14 Avg Prop Armor Cover (%) 10 | . . 10 . Naked Turns . | . . . . Heaviest Build 38 | 12 17 38 15 Greatest Support 40 | 40 40 40 15 Greatest Overweight (x) 3 | . . 3 . Average Overweight (x) . | . . . . Largest Inventory Capacity 15 | 8 8 15 5 Average Capacity 9 | 6 8 12 5 Most Carried 8 | 1 2 8 5 Average Carried 2 | . . 3 4 Final Capacity 8 | 8 8 5 5 Final Carried 4 | . 1 4 3 Class Distribution -------------------- 100% | Mutant Dominant Class ---------------- Mutant | -10/Materials Mutant | -9/Materials Mutant | -9/Mines Resources | -11 -10 -9 -9 ----------- Run | Yrd Mat Mat Min Matter Collected 808 | 230 201 377 . Remotely . | . . . . Salvage Created 840 | . 189 568 83 Parts 53 | . 14 39 . Haulers Intercepted 1 | . . 1 . Recyclers Shooed 1 | . . 1 . Parts Field Recycled . | . . . . Retrieved Matter . | . . . . Parts Self-Destructed . | . . . . Prevented . | . . . . Parts Restored . | . . . . Kills | -11 -10 -9 -9 ------- Run | Yrd Mat Mat Min Combat Hostiles Destroyed 35 | . 7 15 13 Guns 1 | . 1 . . Cannons 9 | . 5 1 3 AOE 25 | . 1 14 10 Classes Destroyed 11 | . 3 7 1 Worker 1 | . . 1 . Builder 2 | . . 2 . Tunneler 1 | . . 1 . Hauler 1 | . . 1 . Recycler 3 | . . 3 . Mechanic 1 | . . 1 . Watcher 4 | . 2 2 . Swarmer 8 | . 3 5 . Grunt 13 | . 4 8 1 Sentry 2 | . . 2 . Assembled 12 | . . . 12 Best Kill Streak 13 | . 3 7 13 Combat Bots Only 13 | . 3 6 13 Max Kills in Single Turn 6 | . 1 3 6 Gunslinging . | . . . . Exploded 6 | . 1 3 6 Melee . | . . . . Uniques/NPCs Destroyed . | . . . . Combat | -11 -10 -9 -9 -------- Run | Yrd Mat Mat Min Hostile Shots Fired 122 | . 33 34 55 Missed 52 | . 12 18 22 Hits 70 | . 21 16 33 Melee 2 | . . . 2 Projectile 68 | . 21 16 31 AOE 13 | . . . 13 Part Disruptions 2 | . . 1 1 Damage Taken 1253 | . 199 277 777 Core 446 | . 21 60 365 Absorbed by Shields . | . . . . Ignored by Resistances 356 | . 61 80 215 Regen/Repaired (Parts) 10 | . 10 . . Core Remaining (%) 95 | 100 91 . . Volleys Fired 75 | . 23 33 19 Largest 2 | . 2 2 1 Hottest 66 | . 60 66 40 Shots Fired 103 | . 34 50 19 Gun 17 | . 14 3 . Cannon 65 | . 19 31 15 Launcher 21 | . 1 16 4 Special . | . . . . Kinetic 81 | . 32 34 15 Thermal . | . . . . Explosive 21 | . 1 16 4 Electromagnetic 1 | . 1 . . Robot Hit Streak 25 | . 5 25 4 Robot Miss Streak 2 | . 2 2 2 Penetration Max . | . . . . Secondary Targets . | . . . . Shots Hit Robots 71 | . 20 38 13 Core Hits 68 | . 13 37 18 Critical Kills . | . . . . Critical Parts Destroyed . | . . . . Critical Strikes 3 | . 1 2 . Blast 3 | . 1 2 . Melee Attacks . | . . . . Impact . | . . . . Slashing . | . . . . Piercing . | . . . . Sneak Attacks . | . . . . Combat Hostiles . | . . . . Follow-up Attacks . | . . . . Damage Inflicted 3000 | . 395 1863 742 Guns 128 | . 106 22 . Cannons 1025 | . 229 538 258 Explosions 1847 | . 60 1303 484 Melee . | . . . . Ramming . | . . . . Kinetic 1133 | . 315 560 258 Thermal 197 | . . 197 . Explosive 1624 | . 60 1080 484 Electromagnetic 46 | . 20 26 . Impact . | . . . . Slashing . | . . . . Piercing . | . . . . Highest Corruption . | . . . . Average Corruption . | . . . . Corruption Purged . | . . . . Corruption Blocked . | . . . . Overload Shots . | . . . . Overflow Damage 145 | . . 131 14 Projectiles 35 | . . 34 1 Explosions 110 | . . 97 13 Melee . | . . . . Knockbacks 8 | . 2 5 1 Impact . | . . . . Kinetic 7 | . 2 4 1 Secondary 1 | . . 1 . Self-Inflicted Damage 228 | . . 141 87 Shots 8 | . . 4 4 Rammed . | . . . . Targets Rammed . | . . . . Kicked . | . . . . Crushed . | . . . . Highest Temperature 80 | . 2 6 80 Average Temperature 25 | . 2 3 35 Received Heat Transfer 296 | . 69 75 152 Siege Activations . | . . . . Martial Activations . | . . . . Shielding Activations . | . . . . Robots Disrupted . | . . . . Combat Hostiles . | . . . . Robots Corrupted . | . . . . Combat Hostiles . | . . . . Parts Fried . | . . . . Impact Corruptions . | . . . . Robots Melted . | . . . . Combat Hostiles . | . . . . Parts Melted . | . . . . Heat Transferred 100 | . . 100 . Parts Sabotaged . | . . . . Parts Stolen . | . . . . Parts Stripped . | . . . . Power Chain Reactions . | . . . . Alert | -11 -10 -9 -9 ------- Run | Yrd Mat Mat Min Maximum Alert Level 2 | . . 2 . Low Security (%) 74 | 100 100 47 100 Level 1 22 | . . 45 . Level 2 3 | . . 6 . Level 3 . | . . . . Level 4 . | . . . . Level 5 . | . . . . High Security . | . . . . Max Security . | . . . . Peak Influence 421 | . 86 421 175 Initial 135 | . . 27 135 Average 114 | . 20 194 135 Influence Increases 935 | . 203 631 101 Destroy 0b10 Robot/C 460 | . 140 300 20 Destroy 0b10 Robot/NC 65 | . 10 55 . Destroy Leader 110 | . 24 86 . Successful Hack 20 | . 20 . . Disable Machine 63 | . . 63 . Destroy Structure 127 | . 9 97 21 Partial Spotted 15 | . . 15 . Lose Combat Pursuer 75 | . . 15 60 Influence Decreases 799 | . 127 296 376 Entered New Map 325 | . . 49 276 Time Decay 404 | . 127 237 40 Lost Part 70 | . . 10 60 Squads Dispatched 4 | . . 3 1 Investigation 4 | . . 3 1 Extermination . | . . . . Reinforcement . | . . . . Assault . | . . . . Garrison . | . . . . Intercept . | . . . . Searches Triggered . | . . . . Construction Impeded . | . . . . Haulers Reinforced . | . . . . Active Scanning Responses . | . . . . Cargo Convoy Interrupts . | . . . . Stealth | -11 -10 -9 -9 --------- Run | Yrd Mat Mat Min Distress Signals 1 | . . 1 . Communications Jammed . | . . . . Distress Signals . | . . . . Times Spotted 55 | . 11 22 22 Peak Tracking Total 18 | . 3 5 18 Tactical Retreats 2 | . . 1 1 Traps | -11 -10 -9 -9 ------- Run | Yrd Mat Mat Min Traps Triggered 2 | . 2 . . Indirectly . | . . . . Trap Hack Attempts . | . . . . Triggered . | . . . . Disarmed . | . . . . Reprogrammed . | . . . . Reused . | . . . . Traps Extracted . | . . . . Installed . | . . . . Triggered . | . . . . Machines | -11 -10 -9 -9 ---------- Run | Yrd Mat Mat Min Machines Disabled 9 | . . 9 . Max in Single Turn 3 | . . 3 . Machines Repaired . | . . . . Machines Dismantled . | . . . . Machines Sabotaged . | . . . . Overloaded Fab Kills . | . . . . Hacking | -11 -10 -9 -9 --------- Run | Yrd Mat Mat Min Machines Accessed 9 | . 3 5 1 Terminals 3 | . 2 1 . Fabricators . | . . . . Repair Stations 2 | . 1 1 . Recycling Units 2 | . . 2 . Scanalyzers 1 | . . 1 . Garrison Access . | . . . . Total Hacks 24 | . 5 18 1 Successful 17 | . 5 11 1 Failed 7 | . . 7 . Catastrophic 1 | . . 1 . Database Lockouts . | . . . . Manual . | . . . . Terminals 6 | . 3 3 . Fabricators . | . . . . Repair Stations 5 | . 2 3 . Recycling Units 8 | . . 8 . Scanalyzers 4 | . . 4 . Garrison Access . | . . . . Terminal Hacks 7 | . 3 3 1 Record 3 | . 2 1 . Open Door 1 | . . . 1 Alert Level 2 | . 1 1 . Zone Layout 1 | . . 1 . Fabricator Hacks . | . . . . Repair Station Hacks 3 | . 2 1 . Scan Component 2 | . 1 1 . Repair 1 | . 1 . . Recycling Unit Hacks 4 | . . 4 . Recycle Component 1 | . . 1 . Process 1 | . . 1 . Retrieve Matter 1 | . . 1 . Retrieve Components 1 | . . 1 . Scanalyzer 3 | . . 3 . Insert Component 1 | . . 1 . Analyze 1 | . . 1 . Retrieve Study 1 | . . 1 . Garrison Access Hacks . | . . . . Unauthorized Hacks . | . . . . Terminals . | . . . . Fabricators . | . . . . Repair Stations . | . . . . Recycling Units . | . . . . Scanalyzers . | . . . . Garrison Access . | . . . . Data Cores Recovered . | . . . . Used . | . . . . Hacking Detections 7 | . 2 5 . Full Trace Events 4 | . . 4 . Feedback Events . | . . . . Feedback Blocked . | . . . . Robot Schematics Acquired . | . . . . Robots Built . | . . . . Authchips . | . . . . Time . | . . . . Total Robot Build Rating . | . . . . Part Schematics Acquired 1 | . . 1 . Parts Built . | . . . . Authchips . | . . . . Time . | . . . . Total Part Build Rating . | . . . . Part Studies Acquired 1 | . . 1 . Parts Repaired 1 | . 1 . . Time 13 | . 13 . . Parts Recycled 1 | . . 1 . Recycled Matter 208 | . . 208 . Retrieved Matter . | . . . . Retrieved Components . | . . . . Parts Scanalyzed 1 | . . 1 . Part Schematics Acquired 1 | . . 1 . Parts Damaged . | . . . . Bothacking | -11 -10 -9 -9 ------------ Run | Yrd Mat Mat Min Used RIF Installer . | . . . . Robots Hacked . | . . . . Non-combat . | . . . . Combat . | . . . . Robot Hacks Applied . | . . . . Relay Couplers Released . | . . . . Fabnet Peak Effective % . | . . . . Robots Rewired . | . . . . Allies Hacked . | . . . . Hacks Repelled . | . . . . Allies | -11 -10 -9 -9 -------- Run | Yrd Mat Mat Min Total Allies . | . . . . Largest Group . | . . . . Highest-Rated Group . | . . . . Highest-Rated Ally . | . . . . Total Orders . | . . . . Ally Attacks . | . . . . Total Damage . | . . . . Kills . | . . . . Allies Corrupted . | . . . . Allies Melted . | . . . . Intel | -11 -10 -9 -9 ------- Run | Yrd Mat Mat Min Active Infowar (turns) . | . . . . Robot Analysis Total . | . . . . Derelict Logs Recovered . | . . . . Drone Launches . | . . . . Drone Recoveries . | . . . . Exploration | -11 -10 -9 -9 ------------- Run | Yrd Mat Mat Min Turns Passed 1118 | 95 375 555 93 Spaces Moved 750 | 54 191 368 137 Core 2 | 2 . . . Treads 356 | 52 191 113 . Legs . | . . . . Wheels 141 | . . 141 . Hover . | . . . . Flight 251 | . . 114 137 Fastest Speed 34 | 50 160 34 34 Average Speed 116 | 155 160 118 34 Slowest Speed 240 | 160 160 240 40 Overloaded Moves . | . . . . Propulsion Burnouts . | . . . . Robots Hopped . | . . . . Potential Cave-ins . | . . . . Cave-ins Triggered . | . . . . Exploration Rate (%) 28 | 4 39 38 33 Regions Visited 3 Branch Regions 1 Pre-discovered Areas . | . . . . Known Exits Taken . | . . . . Unknown Exits Taken 3 | 1 1 1 . Scrap Searched . | . . . . Spaces Dug . | . . . . Terrain Destroyed 119 | . 7 91 21 Melee . | . . . . Projectile 7 | . . . 7 AOE 112 | . 7 91 14 Terrain Rammed . | . . . . Walls Destroyed . | . . . . Machines Disabled . | . . . . Actions | -11 -10 -9 -9 --------- Run | Yrd Mat Mat Min Total 898 | 65 227 441 165 Wait . | . . . . Move 747 | 53 190 367 137 Hop . | . . . . Pick Up 25 | 6 6 11 2 Fast Attach . | . . . . Attach 20 | 6 2 9 3 Detach 8 | . . 7 1 Swap 12 | . 3 7 2 Drop 11 | . 3 7 1 Fire 75 | . 23 33 19 Melee . | . . . . Ram . | . . . . Kick . | . . . . Crush . | . . . . Escape Stasis . | . . . . Rewire . | . . . . Trap . | . . . . Miscellaneous . | . . . . Route ------- -11/Scrapyard -10/Materials (discovered 2 exits: *Mat / [*Min]) -9/Materials -9/Mines History --------- Turn | Location | Event 19 | -11/Scrapyard | Discovered new exit (range 15) 96 | -11/Scrapyard | Entered Materials 168 | -10/Materials | Repaired EM Pulse Gun 301 | -10/Materials | Build established: Mutant 363 | -10/Materials | Discovered new exit (range 8) 447 | -10/Materials | Discovered new exit (range 16) 471 | -10/Materials | Entered another Materials area 471 | -9/Materials | Evolved 2 slots: Propulsion x1, Utility x1 801 | -9/Materials | Discovered new exit (range 13) 1026 | -9/Materials | Entered Mines 1028 | -9/Mines | Met a Derelict shopkeep closing up shop 1048 | -9/Mines | Assembled infested the area 1053 | -9/Mines | Assisted by a Guerilla fighting off Assembled 1097 | -9/Mines | Core integrity fell below 50% 1113 | -9/Mines | Core integrity fell below 20% 1119 | -9/Mines | Destroyed by D-53 Grenadier with Mini Grenade Launcher Last Messages --------------- 01096_ Grenade Launcher+ destroyed. 01097_ The unstable cave ceiling collapses. 01098_ as-76697 destroyed. [Achievement: There's More Where That Came From] 01101_ The unstable cave ceiling collapses. 01102_ Plasma Injector explodes. 01102_ Laser Drill disabled. 01104_ Destroyed Shock Absorption System. 01106_ Slug penetrates D-53 Grenadier. 01108_ Imp. Flight Unit destroyed. 01108_ as-00170 destroyed. 01111_ Gauss Cannon destroyed. 01113_ The unstable cave ceiling collapses. 01113_ Imp. Flight Unit destroyed. 01113_ as-03367 destroyed. 01113_ as-13129 destroyed. 01114_ The unstable cave ceiling collapses. 01114_ as-66007 destroyed. 01115_ as-75722 destroyed. 01118_ The unstable cave ceiling collapses. Map ----- +----------------------------------------------------+ | # # ##??## ???????????????????????????? | | ### ????????????????????????????? | | #???????????????????????????????? | | #????????????????????????????????? | | # ##????????????????????????????????? | | #### ##?????????????????????????????????? | | #??## #??????????????????????????????????? | | #???# ##?????????????????????????????????? | | ???## ##???????#????????????????????????? | | #### ###### #????????????????????????? | | # = #????????????????????????? | | # #????????????????????????? | | # ######????????????????????????? | | # ## ##????????????????????????????? | | # ### !##???????????????????????????? | | #?## *% =%#######?????????????????????? | | # ##??## % * ##????????????????????? | | # #????# d ## #????????????????????? | | # #???# ## ##???????????????????? | | #### #?# #### #???????????????????? | | ???# ## #??# #???????????????????? | | ???# ## #??# #???????????????????? | | ???# ## ##??# ##??????????????????? | | ???# ## ###### # #??????????????????? | | ???? ?# %=#?# #???????????????????? | | ???? ?# #??# """ #@ #???????????????????? | | ???? ?# #???? """ #???????????????????? | | ???? ?# ????? "" #???????????????????? | | ???? ????????# ??????????????????? | | ????#????????# #######?????????????????? | | ?????????????############????????????????????????? | | ?????????????????????????????????????????????????? | | | | | | | | | | | | | | | | | | | | | | | | | | | | | | | | | | | | | +----------------------------------------------------+ Best States ------------- Heat Dissipation 38 Energy Generation 12 Energy Capacity 265 Matter Stores 300 Matter Capacity 400 Sight Range 16 Terrain Scan Density 10 Resistance: KI 20 Resistance: TH 20 Resistance: EX 20 Resistance: EM 20 Resistance: I 20 Resistance: S 20 Resistance: P 20 Evasion (%) 63 Recoil Reduction 2 Offensive Hacking 10 Item Schematics ----------------- Imp. Flight Unit | -9/Materials | Scanalyzed Robot Schematics ------------------ None Fabricated ------------ Nothing Repaired ---------- EM Pulse Gun | 77% | -10/Materials Studied --------- Grenade Launcher | -9/Materials | Hacked Alien Tech Used ----------------- None Achievements -------------- Bumper Bots DATA ERROR: Steam Global Achievement% I Have A Map? Item+ Loot Pinata Organ Harvest Part-time Mechanic Quick And Dirty There's More Where That Came From Challenges ------------ None Game ------ Seed CooledVisualFalx Manual? 0 Play Time 00:36:31 Cumulative 2.8 hours Start 2026.09.08 @ 10:28:42 End 2026.09.08 @ 12:00:50 Sessions 3 Manual Loads 0 Difficulty Adventurer Special Mode None Game No. 4 Rogue 0 Adventurer 4 Explorer 0 Win Type - Total 0 Types 0/0/0/0/0/0/0/0/0/0 Lore% 2 Gallery% 5 Achievement% 5 Wizard Run 0 Options --------- Layout 1 ASCII 0 Keyboard 0 Movement Mouse Keybinds 0 Fullscreen 1 Font 20/SmallcapsGlow Map View 50x35 Zoom Use 0% Tactical HUD 1 Map Filters NONE Filters NONE Steam 1 RUN: bd96b30d-50b0-430b-a921-eb530847a190